bitfinex/quotes_SOLUSD_20241107
["timestamp","ask_amount","ask_price","bid_price","bid_amount"]
[1731015330252,9.90376366,196.68,196.63,23.776884]
[1731015333067,9.90376366,196.69,196.63,23.776884]
[1731015335340,9.90376366,196.68,196.63,23.776884]
[1731015335583,5.28556844,196.7,196.64,20.12549]
[1731015335764,5.28556844,196.7,196.68,20.0]
[1731015335940,9.90376366,196.77,196.7,20.0]
[1731015336134,9.90376366,196.78,196.71,23.776884]
[1731015336438,9.90376366,196.79,196.74,20.0]
[1731015336964,5.28237504,196.81,196.74,20.0]
[1731015337162,9.90376366,196.79,196.74,20.0]
[1731015339759,9.90376366,196.8,196.74,20.0]
[1731015341064,9.90376366,196.8,196.73,23.776884]
[1731015341659,9.90376366,196.8,196.74,20.0]
[1731015342136,5.28237504,196.81,196.74,20.0]
[1731015342341,9.90376366,196.8,196.74,20.0]
[1731015342651,5.28237504,196.81,196.77,23.776884]
[1731015342853,9.90376366,196.83,196.77,23.776884]
[1731015343056,9.90376366,196.82,196.77,23.776884]
[1731015344042,9.90376366,196.83,196.77,23.776884]
[1731015346165,9.90376366,196.82,196.77,23.776884]
[1731015348666,9.90376366,196.82,196.78,20.0]
[1731015349446,9.90376366,196.83,196.78,20.0]
[1731015352079,9.90376366,196.82,196.78,20.0]
[1731015352481,9.90376366,196.83,196.78,20.0]
[1731015354080,16.9979429,196.89,196.78,20.0]
[1731015354081,2.5979429,196.89,196.88,26.73879]
[1731015354284,21.1697,197.02,196.9,23.776884]
[1731015354285,24.30376366,196.95,196.9,23.776884]
[1731015354462,14.4,196.94,196.9,23.776884]
[1731015354663,24.30376366,196.94,196.9,23.776884]
[1731015354863,9.90376366,196.94,196.9,23.776884]
[1731015355374,9.90376366,196.95,196.9,23.776884]
[1731015355599,14.4,196.94,196.9,23.776884]
[1731015356362,24.30376366,196.94,196.9,23.776884]
[1731015356968,9.90376366,196.94,196.9,23.776884]
[1731015357278,9.90376366,196.95,196.9,23.776884]
[1731015357483,9.90376366,196.93,196.88,15.01143771]
[1731015357781,9.90376366,196.93,196.89,23.776884]
[1731015358162,9.90376366,196.94,196.89,23.776884]
[1731015359267,9.90376366,196.95,196.89,23.776884]
[1731015359469,9.90376366,196.96,196.89,23.776884]
[1731015361481,9.90376366,196.98,196.89,23.776884]
[1731015362879,9.90376366,196.99,196.89,23.776884]
[1731015363104,9.90376366,196.99,196.9,0.12549]
[1731015363466,9.90376366,196.99,196.89,23.776884]
[1731015364587,9.90376366,196.98,196.89,23.776884]
[1731015365091,9.90376366,196.99,196.89,23.776884]
[1731015365669,9.90376366,197.0,196.89,23.776884]
[1731015367574,9.90376366,196.99,196.89,23.776884]
[1731015371704,9.90376366,196.96,196.88,2.59942106]
[1731015371987,9.90376366,196.97,196.86,0.12549]
[1731015372179,9.90376366,196.98,196.85,2.58892404]
[1731015372389,9.90376366,196.98,196.84,20.0]
[1731015372768,9.90376366,196.98,196.85,0.12549]
[1731015372964,9.90376366,196.98,196.85,23.902374]
[1731015373181,9.90376366,196.98,196.85,0.12549]
[1731015374373,9.90376366,196.97,196.85,0.12549]
[1731015374796,9.90376366,196.98,196.85,0.12549]
[1731015377683,0.12549,197.01,196.85,0.12549]
[1731015377896,9.90376366,196.98,196.85,0.12549]
[1731015378303,9.90376366,196.97,196.85,0.12549]
[1731015378982,9.90376366,196.96,196.85,0.12549]
[1731015383089,9.90376366,196.95,196.85,0.12549]
[1731015383406,9.90376366,196.96,196.85,0.12549]
[1731015383617,9.90376366,196.97,196.85,0.12549]
[1731015385111,9.90376366,196.96,196.85,0.12549]
[1731015385483,9.90376366,196.97,196.85,0.12549]
[1731015386196,9.90376366,196.96,196.85,0.12549]
[1731015387610,9.90376366,196.94,196.85,0.12549]
[1731015388317,9.90376366,196.93,196.83,2.6169636]
[1731015388503,9.90376366,196.93,196.82,20.0]
[1731015388827,32.13026366,196.94,196.83,0.12549]
[1731015390214,9.90376366,196.93,196.83,0.12549]
[1731015390801,9.90376366,196.93,196.83,23.902374]
[1731015394117,9.90376366,196.92,196.83,23.776884]
[1731015397801,9.90376366,196.93,196.83,23.776884]
[1731015398618,3.77603029,196.92,196.83,23.776884]
[1731015398914,3.77603029,196.91,196.83,23.776884]
[1731015399103,3.77603029,196.9,196.83,23.776884]
[1731015399312,3.78375371,196.89,196.83,23.776884]
[1731015399503,3.78375371,196.88,196.83,23.776884]
[1731015399813,3.78375371,196.87,196.81,18.06479364]
[1731015400014,3.78375371,196.86,196.81,2.50469364]
[1731015400211,9.90376366,196.89,196.77,31.01001866]
[1731015400409,3.78171738,196.88,196.77,31.01001866]
[1731015400607,3.78171738,196.87,196.79,0.12549]
[1731015400918,3.78171738,196.86,196.78,8.71214017]
[1731015401223,3.78171738,196.85,196.78,2.49854017]
[1731015401517,9.90376366,196.88,196.78,0.12549]
[1731015401812,3.78243075,196.87,196.78,0.12549]
[1731015401997,3.78243075,196.87,196.77,24.71005257]
[1731015402198,3.78243075,196.86,196.77,24.71005257]
[1731015402424,3.78243075,196.85,196.77,27.31617312]
[1731015402613,9.90376366,196.87,196.77,27.31617312]
[1731015402911,3.78233313,196.86,196.77,27.31617312]
[1731015403122,3.78233313,196.85,196.77,24.71005257]
[1731015403415,3.78233313,196.84,196.76,7.76539134]
[1731015403621,3.78233313,196.84,196.73,6.1964]
[1731015403622,3.78233313,196.83,196.73,0.12549]
[1731015403840,16.4922,196.84,196.73,0.12549]
[1731015404118,3.7800535,196.83,196.73,0.12549]
[1731015404316,16.4922,196.84,196.73,0.12549]
[1731015404524,3.77813862,196.83,196.75,0.12549]
[1731015404729,16.4922,196.84,196.75,0.12549]
[1731015405226,16.4922,196.84,196.75,2.7267436]
[1731015405408,16.4922,196.84,196.76,23.776884]
[1731015406405,16.4922,196.84,196.72,21.48486609]
[1731015406611,9.90376366,196.86,196.72,21.48486609]
[1731015406925,9.90376366,196.85,196.73,0.12549]
[1731015407700,9.90376366,196.85,196.73,23.902374]
[1731015408417,9.90376366,196.85,196.73,23.776884]
[1731015409619,0.12549,196.88,196.73,23.776884]
[1731015409620,9.90376366,196.84,196.73,23.776884]
[1731015409822,9.90376366,196.82,196.72,31.50468019]
[1731015410027,9.90376366,196.82,196.72,25.2047141]
[1731015410406,9.90376366,196.82,196.72,22.62791675]
[1731015410818,9.90376366,196.82,196.72,15.1849]
[1731015411318,9.90376366,196.8,196.68,7.44301675]
[1731015411925,9.90376366,196.78,196.68,2.50378937]
[1731015412128,9.90376366,196.78,196.67,15.85]
[1731015412435,9.90376366,196.77,196.67,15.85]
[1731015412610,9.90376366,196.76,196.63,6.1455]
[1731015413035,0.1,196.8,196.63,6.1455]
[1731015413207,9.90376366,196.77,196.64,7.44301675]
[1731015413629,9.90376366,196.76,196.64,7.44301675]
[1731015413932,9.90376366,196.75,196.64,7.44301675]
[1731015414124,15.4298,196.76,196.64,7.44301675]
[1731015414125,9.90376366,196.74,196.64,7.44301675]
[1731015415220,15.4298,196.76,196.63,8.69156965]
[1731015415421,9.90376366,196.74,196.63,8.69156965]
[1731015415642,9.90376366,196.73,196.63,2.54606965]
[1731015415827,9.90376366,196.73,196.62,15.85]
[1731015416332,15.5298,196.76,196.58,22.219]
[1731015416542,9.90376366,196.7,196.58,22.219]
[1731015417014,9.90376366,196.69,196.58,22.219]
[1731015417211,0.1,196.74,196.58,22.219]
[1731015417410,9.90376366,196.69,196.58,22.219]
[1731015417638,9.90376366,196.68,196.58,15.836]
[1731015417841,9.90376366,196.68,196.57,11.0890772]
[1731015417842,24.91586366,196.68,196.57,5.0]
[1731015418727,9.90376366,196.67,196.57,5.0]
[1731015419117,24.91586366,196.68,196.57,5.0]
[1731015419318,9.90376366,196.67,196.57,5.0]
[1731015420243,9.90376366,196.66,196.57,5.0]
[1731015420932,9.90376366,196.64,196.57,5.0]
[1731015421239,9.90376366,196.65,196.57,5.0]
[1731015421449,0.12549,196.67,196.57,5.0]
[1731015421450,9.90376366,196.64,196.57,5.0]
[1731015421743,0.12549,196.67,196.57,5.0]
[1731015421744,9.90376366,196.63,196.57,5.0]
[1731015421949,9.90376366,196.62,196.57,5.0]
[1731015422327,9.90376366,196.63,196.57,5.0]
[1731015423723,9.90376366,196.64,196.57,5.0]
[1731015425144,5.27208725,196.66,196.57,5.0]
[1731015425145,15.17585091,196.66,196.57,5.0]
[1731015425352,9.90376366,196.66,196.57,5.0]
[1731015425726,9.90376366,196.66,196.58,20.0]
[1731015425927,9.90376366,196.65,196.58,20.0]
[1731015426539,9.90376366,196.63,196.57,5.0]
[1731015427350,9.90376366,196.62,196.57,5.0]
[1731015428761,9.90376366,196.6,196.57,5.0]
[1731015428936,9.90376366,196.61,196.57,5.0]
[1731015429327,9.90376366,196.59,196.57,5.0]
[1731015430049,9.90376366,196.58,196.57,5.0]
[1731015433764,33.80613766,196.58,196.57,5.0]
[1731015433940,23.902374,196.57,196.53,5.0]
[1731015434137,9.90376366,196.54,196.53,5.0]
[1731015441036,33.80613766,196.54,196.53,0.27855791]
[1731015441868,5.27512493,196.55,196.53,0.27855791]
[1731015442280,9.90376366,196.56,196.53,0.27855791]
[1731015442652,5.27394712,196.57,196.53,0.27855791]
[1731015443257,15.17771078,196.57,196.53,0.27855791]
[1731015443471,5.27394712,196.57,196.53,0.27855791]
[1731015444260,9.90376366,196.54,196.53,0.27855791]
[1731015445962,9.90376366,196.55,196.53,0.27855791]
[1731015447578,9.90376366,196.54,196.53,0.27855791]
[1731015452262,5.27394712,196.57,196.53,0.27855791]
[1731015452263,0.12549,196.56,196.53,0.27855791]
[1731015452481,9.90376366,196.54,196.53,0.27855791]
[1731015456082,5.27307506,196.55,196.53,0.27855791]
[1731015456285,9.90376366,196.54,196.53,0.27855791]
[1731015459392,15.17683872,196.55,196.53,0.27855791]
[1731015460095,9.90376366,196.54,196.53,0.27855791]
[1731015460464,13.66521108,196.54,196.53,0.27855791]
[1731015461281,9.90376366,196.54,196.53,0.27855791]
[1731015461474,13.66788505,196.54,196.53,0.27855791]
[1731015462688,9.90376366,196.54,196.53,0.27855791]
[1731015463372,13.67094362,196.54,196.53,0.27855791]
[1731015463580,9.90376366,196.54,196.53,0.27855791]
[1731015463767,13.67311362,196.54,196.53,0.27855791]
[1731015467001,9.90376366,196.54,196.53,0.27855791]
[1731015467174,13.67459685,196.54,196.53,0.27855791]
[1731015468586,3.77083319,196.54,196.53,0.27855791]
[1731015468787,13.67459685,196.54,196.53,0.27855791]
[1731015469197,13.67705252,196.54,196.53,0.27855791]
[1731015470295,13.67810435,196.54,196.53,0.27855791]
[1731015470874,3.77434069,196.54,196.53,0.27855791]
[1731015473477,9.90376366,196.56,196.53,0.27855791]
[1731015473796,3.77962175,196.55,196.53,0.27855791]
[1731015474108,3.77962175,196.54,196.53,0.27855791]
[1731015474395,13.68338541,196.54,196.53,0.27855791]
[1731015474788,3.77962175,196.54,196.53,0.27855791]
[1731015475721,9.90376366,196.55,196.53,0.27855791]
[1731015476899,9.90376366,196.54,196.53,0.27855791]
[1731015479491,9.90376366,196.55,196.53,0.27855791]
[1731015479698,9.90376366,196.54,196.53,0.27855791]
[1731015480487,9.90376366,196.55,196.53,0.27855791]
[1731015481083,5.27369437,196.58,196.53,0.27855791]
[1731015481284,9.90376366,196.57,196.53,0.27855791]
[1731015481705,5.27369437,196.58,196.53,0.27855791]
[1731015482002,9.90376366,196.64,196.53,0.27855791]
[1731015482210,5.27054762,196.63,196.53,20.27855791]
[1731015482505,9.90376366,196.64,196.53,20.27855791]
[1731015483905,15.17422288,196.65,196.53,20.27855791]
[1731015484296,15.17422288,196.65,196.55,20.0]
[1731015485306,5.27045922,196.65,196.55,20.0]
[1731015485519,15.17422288,196.65,196.55,20.0]
[1731015486018,5.27045922,196.65,196.55,20.0]
[1731015486191,15.17422288,196.65,196.55,20.0]
[1731015486590,9.90376366,196.64,196.55,20.0]
[1731015486810,5.27045922,196.65,196.55,20.0]
[1731015487007,6.3979,196.74,196.58,23.776884]
[1731015487216,9.90376366,196.67,196.59,20.0]
[1731015488010,9.90376366,196.66,196.59,20.0]
[1731015488314,9.90376366,196.68,196.59,20.0]
[1731015488508,15.17429113,196.69,196.59,20.0]
[1731015488717,6.3979,196.74,196.59,20.0]
[1731015488718,0.12549,196.73,196.59,20.0]
[1731015489004,5.26984234,196.72,196.61,20.0]
[1731015489184,9.90376366,196.71,196.63,20.0]
[1731015489388,5.26984234,196.72,196.66,20.0]
[1731015489589,9.90376366,196.72,196.66,20.0]
[1731015490016,9.90376366,196.73,196.66,20.0]
[1731015490513,9.90376366,196.72,196.66,20.0]
[1731015491011,5.26927189,196.75,196.66,20.0]
[1731015491210,23.902374,196.74,196.62,15.8275]
[1731015491415,9.90376366,196.67,196.63,20.0]
[1731015491715,9.90376366,196.68,196.63,20.0]
[1731015491898,9.90376366,196.69,196.63,20.0]
[1731015492311,5.26927189,196.75,196.63,20.0]
[1731015492490,9.90376366,196.71,196.63,20.0]
[1731015494416,9.90376366,196.72,196.63,20.0]
[1731015494714,9.90376366,196.71,196.63,20.0]
[1731015495114,9.90376366,196.7,196.63,20.0]
[1731015497004,9.90376366,196.67,196.63,20.0]
[1731015497208,9.90376366,196.66,196.63,20.0]
[1731015497707,9.90376366,196.65,196.58,23.902374]
[1731015498618,22.7108,196.77,196.61,23.776884]
[1731015498821,9.90376366,196.71,196.63,23.776884]
[1731015499009,9.90376366,196.71,196.64,20.0]
[1731015500011,9.90376366,196.71,196.66,20.0]
[1731015500205,9.90376366,196.69,196.66,20.0]
[1731015500735,9.90376366,196.69,196.62,23.776884]
[1731015500914,9.90376366,196.69,196.63,20.0]
[1731015501116,9.90376366,196.69,196.65,20.0]
[1731015501628,9.90376366,196.68,196.65,20.0]
[1731015502205,9.90376366,196.68,196.62,23.776884]
[1731015502524,9.90376366,196.69,196.63,20.0]
[1731015502827,9.90376366,196.68,196.63,20.0]
[1731015503206,9.90376366,196.69,196.63,20.0]
[1731015503722,5.26952203,196.73,196.63,20.0]
[1731015504220,5.26952203,196.73,196.65,20.0]
[1731015504394,9.90376366,196.7,196.65,20.0]
[1731015504597,27.98011953,196.77,196.65,20.0]
[1731015504828,9.90376366,196.7,196.65,20.0]
[1731015505903,21.71521953,196.77,196.66,23.776884]
[1731015506104,5.26931953,196.77,196.69,20.0]
[1731015506313,9.90376366,196.75,196.69,20.0]
[1731015506512,9.90376366,196.76,196.7,23.776884]
[1731015506717,9.90376366,196.77,196.71,20.0]
[1731015506925,9.90376366,196.76,196.71,20.0]
[1731015509321,27.01320128,196.82,196.71,20.0]
[1731015509500,9.90376366,196.77,196.71,20.0]
[1731015509705,9.90376366,196.74,196.71,20.0]
[1731015510312,9.90376366,196.75,196.71,20.0]
[1731015513724,9.90376366,196.76,196.71,20.0]
[1731015513929,20.42610128,196.82,196.73,20.0]
[1731015514113,9.90376366,196.78,196.73,20.0]
[1731015515103,9.90376366,196.77,196.73,20.0]
[1731015515827,9.90376366,196.74,196.68,15.7328]
[1731015516123,9.90376366,196.75,196.69,20.0]
[1731015516321,9.90376366,196.73,196.65,6.3358]
[1731015516629,9.90376366,196.72,196.66,0.12549]
[1731015516925,9.90376366,196.73,196.66,0.12549]
[1731015517332,9.90376366,196.73,196.66,23.902374]
[1731015518629,9.90376366,196.72,196.69,20.0]
[1731015519415,9.90376366,196.7,196.64,20.0]
[1731015519618,9.90376366,196.71,196.64,20.0]
[1731015519817,9.90376366,196.72,196.65,0.12549]
[1731015520208,9.90376366,196.71,196.65,0.12549]
[1731015520754,4.90376366,196.71,196.66,20.0]
[1731015521521,5.26972086,196.78,196.66,20.0]
[1731015521723,9.90376366,196.72,196.66,20.0]
[1731015522041,5.26972086,196.78,196.68,20.0]
[1731015522215,9.90376366,196.72,196.68,20.0]
[1731015522532,9.90376366,196.71,196.68,20.0]
[1731015522936,9.90376366,196.72,196.68,20.0]
[1731015524116,9.90376366,196.72,196.67,23.776884]
[1731015524117,9.90376366,196.7,196.67,23.776884]
[1731015524316,9.90376366,196.7,196.6,0.1]
[1731015524524,9.90376366,196.7,196.6,0.22549]
[1731015524731,9.90376366,196.7,196.6,7.66850675]
[1731015524918,9.90376366,196.7,196.62,0.12549]
[1731015525628,9.90376366,196.71,196.64,20.12549]
[1731015525824,16.172,196.77,196.67,23.776884]
[1731015526031,9.90376366,196.72,196.67,23.776884]
[1731015526321,9.90376366,196.71,196.67,23.776884]
[1731015526529,16.172,196.77,196.67,23.776884]
[1731015526530,9.90376366,196.7,196.67,23.776884]
[1731015527250,9.90376366,196.72,196.67,23.776884]
[1731015527620,9.90376366,196.71,196.67,23.776884]
[1731015528128,9.90376366,196.73,196.67,23.776884]
[1731015528437,9.90376366,196.71,196.67,23.776884]
[1731015529545,9.90376366,196.7,196.67,23.776884]
[1731015530937,9.90376366,196.68,196.6,7.44301675]
[1731015531134,16.172,196.77,196.58,16.0773]
[1731015531330,16.172,196.77,196.62,0.12549]
[1731015531543,9.90376366,196.71,196.62,0.12549]
[1731015531847,9.90376366,196.7,196.62,0.12549]
[1731015532062,9.90376366,196.7,196.59,7.64301675]
[1731015532240,9.90376366,196.7,196.6,44.002374]
[1731015532437,9.90376366,196.7,196.61,0.1]
[1731015532634,9.90376366,196.71,196.61,7.64301675]
[1731015532864,9.90376366,196.72,196.62,43.902374]
[1731015533744,9.90376366,196.71,196.62,43.902374]
[1731015533939,9.60376366,196.7,196.62,43.902374]
[1731015535552,16.172,196.77,196.62,51.34539075]
[1731015535784,9.90376366,196.72,196.62,51.34539075]
[1731015535971,9.90376366,196.71,196.62,51.34539075]
[1731015536145,9.90376366,196.7,196.62,51.34539075]
[1731015536457,9.90376366,196.7,196.62,43.902374]
[1731015536659,9.90376366,196.7,196.62,46.4750987]
[1731015536961,9.90376366,196.71,196.62,46.4750987]
[1731015537859,9.90376366,196.7,196.62,46.4750987]
[1731015539548,9.90376366,196.71,196.62,46.4750987]
[1731015539748,9.90376366,196.69,196.62,46.4750987]
[1731015539959,9.90376366,196.69,196.62,2.5727247]
[1731015540261,9.90376366,196.69,196.59,20.0]
[1731015540562,9.90376366,196.68,196.6,0.12549]
[1731015541361,9.90376366,196.68,196.62,23.776884]
[1731015541537,9.90376366,196.68,196.63,20.0]
[1731015541863,9.90376366,196.68,196.65,20.0]
[1731015542442,9.90376366,196.69,196.65,20.0]
[1731015542645,9.90376366,196.69,196.64,23.776884]
[1731015544267,9.90376366,196.7,196.64,23.776884]
[1731015544477,9.90376366,196.71,196.65,20.0]
[1731015544766,9.90376366,196.7,196.65,20.0]
[1731015545151,9.90376366,196.68,196.65,20.0]
[1731015545350,5.2657262,196.73,196.65,20.0]
[1731015545351,9.90376366,196.69,196.65,20.0]
[1731015545558,5.2657262,196.73,196.67,20.0]
[1731015545762,9.90376366,196.74,196.68,23.776884]
[1731015546146,9.90376366,196.73,196.68,23.776884]
[1731015547944,9.90376366,196.72,196.68,23.776884]
[1731015548363,9.90376366,196.73,196.68,23.776884]
[1731015549164,9.90376366,196.74,196.68,23.776884]
[1731015550170,6.5884,196.78,196.7,23.776884]
[1731015550471,9.90376366,196.76,196.7,23.776884]
[1731015551566,9.90376366,196.76,196.71,20.0]
[1731015554648,9.90376366,196.77,196.72,23.776884]
[1731015554849,9.90376366,196.78,196.72,23.776884]
[1731015555279,9.90376366,196.77,196.72,23.776884]
[1731015556170,9.90376366,196.74,196.67,2.49916929]
[1731015556366,9.90376366,196.74,196.63,0.2]
[1731015556554,9.90376366,196.74,196.63,0.32549]
[1731015557375,15.3039,196.81,196.66,0.12549]
[1731015557558,15.3039,196.81,196.69,23.776884]
[1731015557559,9.90376366,196.76,196.69,23.776884]
[1731015557876,15.3039,196.81,196.72,20.0]
[1731015558060,9.90376366,196.78,196.73,23.776884]
[1731015559268,15.3039,196.81,196.74,20.0]
[1731015559459,9.90376366,196.8,196.74,20.0]
[1731015559662,9.90376366,196.8,196.76,20.0]
[1731015560174,9.90376366,196.8,196.75,23.776884]
[1731015560377,9.90376366,196.8,196.76,20.0]
[1731015561877,9.90376366,196.8,196.74,20.0]
[1731015562060,9.90376366,196.8,196.75,23.776884]
[1731015562261,9.90376366,196.8,196.76,20.0]
[1731015567485,9.90376366,196.81,196.76,20.0]
[1731015568384,21.78793455,196.86,196.78,20.0]
[1731015568586,9.90376366,196.83,196.79,23.776884]
[1731015568776,9.90376366,196.84,196.8,20.0]
[1731015569088,9.90376366,196.85,196.81,23.776884]
[1731015569464,9.90376366,196.85,196.8,20.0]
[1731015569681,9.90376366,196.84,196.79,23.776884]
[1731015569879,9.90376366,196.84,196.8,20.0]
[1731015570386,9.90376366,196.83,196.8,20.0]
[1731015571085,9.90376366,196.85,196.8,20.0]
[1731015571288,9.90376366,196.84,196.8,20.0]
[1731015572087,9.90376366,196.85,196.8,20.0]
[1731015572976,9.90376366,196.84,196.8,20.0]
[1731015575109,9.90376366,196.83,196.75,18.49219329]
[1731015575393,9.90376366,196.79,196.7,15.7792]
[1731015575569,6.0452,196.88,196.71,0.1]
[1731015575768,9.90376366,196.85,196.74,0.22549]
[1731015576000,9.90376366,196.85,196.74,7.76850675]
[1731015576201,6.0452,196.88,196.74,7.56850675]
[1731015576498,9.90376366,196.85,196.76,0.12549]
[1731015577072,9.90376366,196.84,196.76,0.12549]
[1731015577286,6.0452,196.88,196.75,43.776884]
[1731015577287,9.90376366,196.82,196.75,43.776884]
[1731015579872,9.90376366,196.81,196.75,43.776884]
[1731015580303,5.26481715,196.87,196.75,23.776884]
[1731015580304,9.90376366,196.8,196.75,23.776884]
[1731015580598,15.3762,196.84,196.75,23.776884]
[1731015580891,9.90376366,196.8,196.75,23.776884]
[1731015581676,9.90376366,196.8,196.76,20.0]
[1731015582003,9.90376366,196.79,196.71,6.03917164]
[1731015582207,15.3762,196.84,196.7,18.26341613]
[1731015582208,9.90376366,196.78,196.7,18.26341613]
[1731015582878,9.90376366,196.76,196.68,8.21674358]
[1731015583393,9.90376366,196.77,196.68,8.21674358]
[1731015583604,9.90376366,196.77,196.68,10.80662252]
[1731015584100,9.90376366,196.77,196.69,20.0]
[1731015584600,9.90376366,196.78,196.69,20.0]
[1731015585193,9.90376366,196.78,196.7,23.776884]
[1731015585498,9.90376366,196.78,196.71,20.0]
[1731015585699,6.2297,196.83,196.72,23.776884]
[1731015585887,9.90376366,196.79,196.72,23.776884]
[1731015586282,9.90376366,196.78,196.72,23.776884]
[1731015587291,6.2297,196.83,196.72,23.776884]
[1731015587583,9.90376366,196.78,196.72,23.776884]
[1731015587983,9.90376366,196.77,196.71,20.0]
[1731015588185,9.90376366,196.74,196.69,20.0]
[1731015589396,9.90376366,196.75,196.69,20.0]
[1731015590081,9.90376366,196.74,196.69,20.0]
[1731015590280,9.90376366,196.73,196.67,20.0]
[1731015591387,9.90376366,196.74,196.67,20.0]
[1731015595405,9.90376366,196.75,196.67,20.0]
[1731015596511,9.90376366,196.74,196.67,20.0]
[1731015598805,15.2991,196.77,196.67,20.0]
[1731015598988,9.90376366,196.75,196.67,20.0]
[1731015599908,9.90376366,196.74,196.67,20.0]
[1731015600403,9.90376366,196.72,196.67,20.0]
[1731015600611,9.90376366,196.73,196.67,23.776884]
[1731015600991,9.90376366,196.74,196.67,28.776884]
[1731015602198,9.90376366,196.73,196.67,28.776884]
[1731015604994,9.90376366,196.74,196.67,28.776884]
[1731015605796,9.90376366,196.75,196.67,28.776884]
[1731015606019,9.90376366,196.77,196.69,23.776884]
[1731015606403,9.90376366,196.76,196.69,23.776884]
[1731015606819,9.90376366,196.75,196.69,23.776884]
[1731015608006,9.90376366,196.76,196.69,23.776884]
[1731015609602,9.90376366,196.77,196.69,23.776884]
[1731015610851,9.90376366,196.76,196.69,23.776884]
[1731015610998,9.90376366,196.77,196.69,23.776884]
[1731015611315,5.26750983,196.81,196.71,23.776884]
[1731015611613,9.90376366,196.8,196.74,20.0]
[1731015612123,9.90376366,196.79,196.74,20.0]
[1731015613119,9.90376366,196.78,196.74,20.0]
[1731015613298,9.90376366,196.79,196.74,20.0]
[1731015614316,9.90376366,196.78,196.72,23.776884]
[1731015614494,9.90376366,196.79,196.72,23.776884]
[1731015614699,9.90376366,196.78,196.72,23.776884]
[1731015616003,9.90376366,196.79,196.72,23.776884]
[1731015616621,9.90376366,196.79,196.73,23.776884]
[1731015617718,9.90376366,196.78,196.73,23.776884]
[1731015618099,9.90376366,196.79,196.73,23.776884]
[1731015619804,9.90376366,196.78,196.73,23.776884]
[1731015620207,9.90376366,196.79,196.73,23.776884]
[1731015621625,9.90376366,196.8,196.73,23.776884]
[1731015621810,16.4276,196.87,196.75,23.776884]
[1731015622021,9.90376366,196.8,196.75,23.776884]
[1731015624516,9.90376366,196.81,196.75,23.776884]
[1731015627135,9.90376366,196.82,196.75,23.776884]
[1731015627713,9.90376366,196.81,196.75,23.776884]
[1731015630821,9.90376366,196.82,196.75,23.776884]
[1731015632541,9.90376366,196.8,196.75,23.776884]
[1731015632715,9.90376366,196.81,196.75,23.776884]
[1731015632916,9.90376366,196.82,196.75,23.776884]
[1731015636839,9.90376366,196.81,196.75,23.776884]
[1731015637032,21.69080063,196.87,196.75,23.776884]
[1731015637318,9.90376366,196.82,196.75,23.776884]
[1731015637629,9.90376366,196.83,196.75,23.776884]
[1731015638814,9.90376366,196.77,196.75,23.776884]
[1731015639140,5.28889455,196.82,196.67,21.0906]
[1731015639321,5.28889455,196.82,196.68,5.83236269]
[1731015639526,9.90376366,196.78,196.68,5.83236269]
[1731015639743,9.90376366,196.77,196.68,5.73236269]
[1731015639929,9.90376366,196.77,196.68,8.26881429]
[1731015640319,9.90376366,196.77,196.69,0.12549]
[1731015640639,9.90376366,196.78,196.69,20.12549]
[1731015640823,5.28810831,196.84,196.71,0.12549]
[1731015640824,9.90376366,196.79,196.71,0.12549]
[1731015641140,5.28810831,196.84,196.73,20.12549]
[1731015641350,9.90376366,196.81,196.74,23.776884]
[1731015643149,5.28933214,196.86,196.76,23.776884]
[1731015643351,9.90376366,196.83,196.76,23.776884]
[1731015643722,9.90376366,196.82,196.76,23.776884]
[1731015647522,9.90376366,196.85,196.76,23.776884]
[1731015647728,9.90376366,196.83,196.76,23.776884]
[1731015648248,9.90376366,196.82,196.76,23.776884]
[1731015648630,9.90376366,196.83,196.76,23.776884]
[1731015653348,9.90376366,196.82,196.76,23.776884]
[1731015655159,9.90376366,196.83,196.76,23.776884]
[1731015660755,9.90376366,196.84,196.76,23.776884]
[1731015661368,21.9763,196.95,196.79,20.0]
[1731015661559,21.9763,196.95,196.81,20.0]
[1731015661739,9.90376366,196.89,196.81,20.0]
[1731015662074,9.90376366,196.86,196.81,20.0]